bitfinex/quotes_SOLUSD_20251115
["timestamp","ask_amount","ask_price","bid_price","bid_amount"]
[1763247721846,10.13938646,139.93,139.91,0.7]
[1763247722026,2.9925994,139.92,139.89,0.7]
[1763247722626,10.82938646,139.93,139.89,0.7]
[1763247723731,2.9925994,139.92,139.89,0.7]
[1763247725650,0.69,139.91,139.89,0.7]
[1763247726040,19.2896236,139.92,139.89,0.7]
[1763247733862,19.06009733,139.92,139.89,0.7]
[1763247735165,2.76307313,139.9,139.87,0.66]
[1763247735467,2.76307313,139.88,139.84,19.26357743]
[1763247735667,2.76307313,139.88,139.85,0.66]
[1763247735869,3.47307313,139.88,139.85,0.66]
[1763247736449,10.6221302,139.88,139.85,0.66]
[1763247737865,2.76307313,139.87,139.85,0.66]
[1763247738363,10.6221302,139.88,139.85,0.66]
[1763247743374,0.71,139.87,139.83,7.15154115]
[1763247743579,0.71,139.87,139.85,0.66]
[1763247744276,10.62269521,139.87,139.83,7.81154115]
[1763247744446,2.76307313,139.86,139.83,0.66]
[1763247744774,11.22307313,139.85,139.82,0.66]
[1763247744968,2.76307313,139.84,139.82,0.66]
[1763247745152,3.47307313,139.84,139.81,0.76]
[1763247745564,9.91425981,139.84,139.81,0.76]
[1763247746054,10.62425981,139.84,139.81,0.76]
[1763247748572,10.62425981,139.84,139.81,0.1]
[1763247748573,2.76307313,139.82,139.81,0.1]
[1763247748771,3.47307313,139.82,139.81,0.1]
[1763247750050,10.62512576,139.82,139.81,0.1]
[1763247752880,9.63362549,139.82,139.81,0.1]
[1763247754884,8.46,139.85,139.81,0.76]
[1763247755064,8.46,139.85,139.82,1.77157286]
[1763247755274,24.42277286,139.89,139.83,9.58311401]
[1763247755459,8.46,139.88,139.84,0.66]
[1763247755883,8.46,139.88,139.85,1.77157286]
[1763247756061,2.48157286,139.91,139.86,1.77157286]
[1763247756369,8.46,139.9,139.86,1.77157286]
[1763247756579,2.48157286,139.93,139.88,1.77157286]
[1763247756884,8.46,139.92,139.88,1.77157286]
[1763247757076,8.46,139.92,139.89,0.66]
[1763247757274,8.46,139.92,139.9,7.14796283]
[1763247757883,8.46,139.92,139.9,7.80796283]
[1763247758084,8.46,139.92,139.9,0.66]
[1763247758384,10.23157286,139.92,139.9,0.66]
[1763247758782,0.71,139.91,139.87,0.66]
[1763247758996,1.77157286,139.88,139.83,7.81142006]
[1763247759165,1.77157286,139.85,139.81,0.76]
[1763247759365,10.23157286,139.85,139.81,0.76]
[1763247759570,1.77157286,139.84,139.81,0.76]
[1763247759779,2.48157286,139.84,139.81,0.1]
[1763247759974,1.77157286,139.83,139.81,0.1]
[1763247760266,1.77157286,139.83,139.81,0.76]
[1763247760810,9.17,139.85,139.81,0.76]
[1763247760811,1.77157286,139.85,139.81,0.76]
[1763247761087,8.48,139.84,139.81,0.76]
[1763247761267,32.44002769,139.89,139.83,1.77157286]
[1763247761268,1.77157286,139.88,139.83,1.77157286]
[1763247761455,1.77157286,139.88,139.81,7.91254725]
[1763247761456,1.77157286,139.92,139.87,1.77157286]
[1763247761663,8.48,139.92,139.88,2.43157286]
[1763247761966,8.48,139.92,139.9,1.77157286]
[1763247762166,8.48,139.94,139.9,1.77157286]
[1763247762359,8.48,139.94,139.91,2.43157286]
[1763247763189,1.77157286,139.92,139.88,2.44157286]
[1763247763390,1.77157286,139.92,139.81,57.95866753]
[1763247763391,1.77157286,139.9,139.85,2.44157286]
[1763247763697,1.77157286,139.89,139.85,0.67]
[1763247764198,1.77157286,139.89,139.85,2.44157286]
[1763247764400,1.77157286,139.89,139.85,9.59190546]
[1763247764602,1.77157286,139.89,139.81,35.86086855]
[1763247764603,9.15,139.88,139.81,0.77]
[1763247764805,1.77157286,139.9,139.85,1.77157286]
[1763247765023,1.77157286,139.9,139.82,0.67]
[1763247765024,8.48,139.91,139.87,1.77157286]
[1763247765483,8.48,139.91,139.88,0.67]
[1763247766103,8.48,139.92,139.88,9.59039387]
[1763247766303,0.67,139.96,139.9,1.77157286]
[1763247766604,8.48,139.94,139.9,1.77157286]
[1763247766800,8.48,139.94,139.91,0.67]
[1763247768321,2.44157286,139.93,139.89,1.77157286]
[1763247768490,1.77157286,139.9,139.86,2.44157286]
[1763247768799,1.77157286,139.9,139.86,0.67]
[1763247769005,1.77157286,139.9,139.87,0.67]
[1763247769387,8.91971657,139.9,139.85,1.77157286]
[1763247769610,1.77157286,139.87,139.82,2.44157286]
[1763247769802,1.77157286,139.86,139.82,0.67]
[1763247769999,1.77157286,139.84,139.81,0.1]
[1763247770201,1.77157286,139.84,139.81,0.77]
[1763247770511,8.48,139.86,139.83,1.77157286]
[1763247770679,8.48,139.86,139.84,0.67]
[1763247771483,8.48,139.88,139.84,12.12142324]
[1763247771683,4.30063743,139.9,139.86,4.30063743]
[1763247771912,8.48,139.9,139.86,4.30063743]
[1763247772114,8.48,139.9,139.87,0.67]
[1763247772315,8.48,139.92,139.88,4.30063743]
[1763247772802,8.48,139.92,139.89,0.67]
[1763247773393,13.45063743,139.92,139.87,4.97063743]
[1763247773616,13.45063743,139.92,139.88,7.14898484]
[1763247773617,20.59763268,139.92,139.88,7.14898484]
[1763247773918,20.59763268,139.92,139.88,7.81898484]
[1763247774605,4.30063743,139.89,139.84,0.67]
[1763247774910,12.78063743,139.88,139.83,4.30063743]
[1763247775112,8.48,139.88,139.84,4.30063743]
[1763247775492,8.48,139.88,139.85,0.67]
[1763247776117,12.78063743,139.91,139.86,4.30063743]
[1763247776497,12.78063743,139.91,139.87,0.67]
[1763247777218,13.45063743,139.91,139.87,0.67]
[1763247777613,4.30063743,139.88,139.82,7.82185388]
[1763247777819,4.30063743,139.86,139.82,7.82185388]
[1763247778329,4.30063743,139.86,139.82,7.15185388]
[1763247778491,4.97063743,139.86,139.82,7.82185388]
[1763247779196,4.30063743,139.85,139.82,7.82185388]
[1763247779611,4.30063743,139.85,139.83,0.67]
[1763247780232,4.97063743,139.84,139.81,0.1]
[1763247780532,4.30063743,139.82,139.81,0.1]
[1763247780935,4.97063743,139.82,139.81,0.1]
[1763247781603,12.12269006,139.82,139.81,0.1]
[1763247782234,34.77389006,139.82,139.81,0.1]
[1763247782526,44.56271775,139.82,139.81,0.1]
[1763247783115,33.11002769,139.81,139.77,0.1]
[1763247783432,12.80063743,139.8,139.77,0.77]
[1763247783635,8.5,139.8,139.77,0.77]
[1763247784023,15.65315589,139.8,139.77,0.77]
[1763247784208,19.95379332,139.8,139.77,0.77]
[1763247785031,11.45379332,139.8,139.77,0.77]
[1763247785234,4.30063743,139.78,139.77,0.1]
[1763247785531,45.24066512,139.78,139.77,0.1]
[1763247785707,53.06476441,139.78,139.77,0.1]
[1763247786721,42.60593672,139.78,139.77,0.1]
[1763247786927,15.65409929,139.78,139.77,0.1]
[1763247787231,15.65377959,139.79,139.77,0.77]
[1763247788641,4.30063743,139.78,139.77,0.1]
[1763247788840,4.97063743,139.78,139.77,0.1]
[1763247789130,14.75946512,139.78,139.77,0.1]
[1763247790533,21.91356441,139.78,139.77,0.1]
[1763247793536,11.45473672,139.78,139.77,0.1]
[1763247794642,19.95473672,139.78,139.77,0.1]
[1763247799053,8.5,139.78,139.77,0.82]
[1763247800451,15.65409929,139.78,139.77,0.82]
[1763247801557,8.5,139.78,139.77,0.82]
[1763247801759,15.65409929,139.78,139.77,0.82]
[1763247802626,15.65409929,139.78,139.77,0.1]
[1763247803730,15.65409929,139.78,139.77,0.82]
[1763247804035,20.64473672,139.78,139.77,1e-08]
[1763247804233,10.47882769,139.77,139.76,1e-08]
[1763247804432,21.93407626,139.77,139.76,1e-08]
[1763247805425,7.15461114,139.77,139.76,1e-08]
[1763247805731,15.65426108,139.78,139.76,0.72000001]
[1763247806837,15.65426108,139.78,139.76,1e-08]
[1763247807042,15.65426108,139.78,139.76,0.72000001]
[1763247809331,19.95489851,139.78,139.76,1e-08]
[1763247810890,17.42618776,139.78,139.76,1e-08]
[1763247811687,15.65426108,139.78,139.76,1e-08]
[1763247811899,35.75319171,139.85,139.77,2.49192668]
[1763247812060,1.77192668,139.82,139.78,0.72]
[1763247812672,10.27192668,139.82,139.78,0.72]
[1763247812876,1.77192668,139.81,139.78,0.72]
[1763247813789,7.15256419,139.81,139.78,0.72]
[1763247815787,25.03397467,139.81,139.78,0.72]
[1763247816085,27.80113354,139.81,139.78,0.72]
[1763247816457,7.15227187,139.82,139.78,0.72]
[1763247816662,40.53025522,139.83,139.78,0.72]
[1763247816663,8.5,139.83,139.79,2.76715887]
[1763247816881,8.5,139.83,139.8,2.76715887]
[1763247817473,7.15205263,139.82,139.81,0.72]
[1763247819591,8.5,139.83,139.81,0.72]
[1763247820090,8.5,139.83,139.81,3.48715887]
[1763247820289,7.15141335,139.84,139.81,3.48715887]
[1763247820495,7.15141335,139.84,139.82,0.72]
[1763247820696,8.5,139.85,139.82,0.72]
[1763247820880,8.5,139.85,139.82,3.48715887]
[1763247821276,8.5,139.85,139.83,3.48715887]
[1763247821491,8.5,139.88,139.84,2.76715887]
[1763247821688,8.5,139.88,139.85,0.72]
[1763247821890,7.1469411,139.92,139.87,2.76715887]
[1763247822070,7.34646327,139.93,139.89,2.76715887]
[1763247822387,10.11362214,139.93,139.88,3.48715887]
[1763247822564,11.26715887,139.92,139.88,0.72]
[1763247822768,11.26715887,139.92,139.89,0.72]
[1763247823388,7.14745193,139.91,139.89,0.72]
[1763247825282,22.48878359,139.92,139.89,0.72]
[1763247825491,15.64714963,139.92,139.89,0.72]
[1763247829888,8.5,139.92,139.89,0.72]
[1763247830697,22.48860977,139.92,139.89,0.72]
[1763247830896,6.84163396,139.91,139.89,0.72]
[1763247831379,6.84163396,139.91,139.87,0.72]
[1763247832201,13.98916727,139.91,139.87,7.56163396]
[1763247832394,13.98916727,139.91,139.88,0.72]
[1763247833598,0.68,139.9,139.86,16.06163396]
[1763247833903,6.84163396,139.88,139.86,0.72]
[1763247834077,25.01616314,139.91,139.87,7.56163396]
[1763247834286,25.01616314,139.91,139.88,7.56163396]
[1763247835203,7.14710045,139.92,139.89,7.56163396]
[1763247835579,7.14710045,139.92,139.9,0.72]
[1763247836690,7.14710045,139.92,139.88,0.72]
[1763247836905,8.5,139.91,139.88,0.72]
[1763247837086,15.34163396,139.91,139.88,0.72]
[1763247837292,8.5,139.91,139.88,0.72]
[1763247837493,15.34163396,139.91,139.88,0.72]
[1763247837805,8.5,139.91,139.88,0.72]
[1763247838498,7.14796283,139.9,139.88,0.72]
[1763247840115,13.98959679,139.9,139.88,0.72]
[1763247840403,13.98959679,139.9,139.87,0.72]
[1763247841217,6.84163396,139.88,139.76,50.00000001]
[1763247841390,8.48,139.87,139.82,6.84163396]
[1763247841706,8.5,139.88,139.84,6.84163396]
[1763247842082,8.5,139.88,139.85,0.72]
[1763247842289,6.84163396,139.86,139.82,7.56163396]
[1763247842615,6.84163396,139.85,139.8,6.84163396]
[1763247843008,6.84163396,139.85,139.81,0.72]
[1763247843308,7.15102974,139.84,139.81,0.72]
[1763247843513,13.99232816,139.85,139.81,7.56163396]
[1763247843887,13.99232816,139.85,139.82,0.72]
[1763247844892,9.91668171,139.85,139.82,0.72]
[1763247845425,8.5,139.86,139.82,0.72]
[1763247845713,8.5,139.86,139.82,10.63788841]
[1763247845909,18.41608401,139.86,139.83,0.72]
[1763247848117,8.5,139.86,139.83,3.48598751]
[1763247848419,8.5,139.86,139.83,10.63751194]
[1763247848593,8.5,139.86,139.84,0.72]
[1763247849618,15.65005911,139.86,139.84,0.72]
[1763247854506,17.87073361,139.9,139.85,2.76598751]
[1763247854820,29.13672112,139.9,139.86,2.76598751]
[1763247855199,29.79672112,139.9,139.86,3.44598751]
[1763247855399,7.1484738,139.89,139.86,0.68]
[1763247855600,9.91446131,139.89,139.86,0.68]
[1763247856524,8.5,139.9,139.86,10.59594179]
[1763247856702,8.5,139.9,139.87,2.76598751]
[1763247856901,8.5,139.9,139.87,3.44598751]
[1763247857126,8.5,139.9,139.88,0.68]
[1763247857307,11.26598751,139.92,139.88,0.68]
[1763247857503,2.96598751,139.93,139.89,7.1484738]
[1763247857710,8.7,139.93,139.9,0.68]
[1763247858727,0.2,139.93,139.9,0.68]
[1763247859032,0.2,139.93,139.9,3.44598751]
[1763247859410,0.2,139.93,139.91,7.14745193]
[1763247859617,0.2,139.93,139.92,2.76598751]
[1763247859923,0.2,139.93,139.92,3.44598751]
[1763247860429,0.2,139.93,139.92,0.68]
[1763247860604,0.2,139.93,139.92,3.44598751]
[1763247861632,0.2,139.93,139.92,13.35891612]
[1763247862913,0.2,139.97,139.93,9.78882769]
[1763247863123,0.2,139.97,139.96,2.76598751]
[1763247863509,0.2,139.97,139.96,3.44598751]
[1763247863830,0.2,139.97,139.96,10.59088605]
[1763247865617,0.2,139.97,139.96,7.82489854]
[1763247868740,8.48,139.98,139.92,0.68]
[1763247868932,2.76598751,139.95,139.92,0.68]
[1763247869128,2.76598751,139.94,139.9,18.54936781]
[1763247869328,2.76598751,139.98,139.93,2.76598751]
[1763247869515,2.76598751,139.98,139.94,9.91190718]
[1763247869715,31.3312,139.99,139.94,10.59190718]
[1763247869921,0.2,139.99,139.95,3.44598751]
[1763247870242,0.2,139.99,139.96,0.68]
[1763247870544,0.2,139.99,139.96,3.44598751]
[1763247870731,0.2,139.99,139.97,0.68]
[1763247870932,0.2,139.99,139.97,7.82419136]
[1763247871329,0.49,139.99,139.94,0.68]
[1763247871533,2.76598751,139.96,139.94,0.68]
[1763247872151,2.76598751,139.97,139.94,0.68]
[1763247872927,2.76598751,139.96,139.92,7.8269411]
[1763247873123,2.76598751,139.96,139.93,0.68]
[1763247873748,3.05598751,139.97,139.93,0.68]
[1763247874125,2.76598751,139.97,139.93,0.68]
[1763247875038,9.91039676,139.97,139.93,7.82612674]
[1763247876034,2.76598751,139.96,139.91,11.24598751]
[1763247876239,11.24598751,139.95,139.91,7.82716102]
[1763247876438,11.53598751,139.95,139.91,7.82716102]
[1763247876839,10.53767827,139.95,139.91,7.82716102]
[1763247877247,17.68311148,139.95,139.91,9.59483929]
[1763247877442,17.39311148,139.95,139.92,0.68]
[1763247877648,10.24767827,139.95,139.92,0.68]
[1763247877849,8.48,139.95,139.92,2.44767827]
[1763247878151,17.39212883,139.97,139.92,2.44767827]
[1763247878459,10.24767827,139.97,139.93,0.68]
[1763247878835,17.39215994,139.97,139.93,0.68]
[1763247879558,1.76767827,139.95,139.9,2.44767827]
[1763247880056,1.76767827,139.95,139.91,0.68]
[1763247880430,1.76767827,139.94,139.91,0.68]
[1763247880651,1.76767827,139.94,139.91,7.82731522]
[1763247880862,1.76767827,139.94,139.87,22.6512]
[1763247880863,1.76767827,139.92,139.87,22.6512]
[1763247881033,1.76767827,139.9,139.86,7.14965999]
[1763247881354,1.76767827,139.9,139.87,0.68]
[1763247881733,1.76767827,139.88,139.84,0.68]
[1763247881953,8.5,139.87,139.8,26.80344364]
[1763247882152,8.5,139.87,139.83,1.76767827]
[1763247882366,1.76767827,139.88,139.84,1.76767827]
[1763247882768,10.26767827,139.89,139.85,0.68]
[1763247883853,17.41621168,139.89,139.85,0.68]
[1763247885046,17.41621168,139.89,139.82,26.3793769]
[1763247885047,1.76767827,139.86,139.82,2.43767827]
[1763247885245,1.76767827,139.86,139.82,7.15197816]
[1763247885454,1.76767827,139.86,139.83,0.67]
[1763247886869,8.91717423,139.87,139.83,0.67]
[1763247887954,10.26767827,139.89,139.84,1.76767827]
[1763247888266,17.41636377,139.89,139.85,1.76767827]
[1763247888651,17.70636377,139.89,139.85,0.67]
[1763247892065,17.41636377,139.89,139.85,0.67]
[1763247892243,17.41636377,139.89,139.85,7.82046632]
[1763247892449,17.41636377,139.89,139.86,0.67]
[1763247894162,1.76767827,139.88,139.84,0.67]
[1763247894363,1.76767827,139.88,139.83,10.26767827]
[1763247894364,8.5,139.89,139.85,2.43767827]
[1763247894573,8.5,139.89,139.86,0.67]
[1763247894778,17.70618379,139.89,139.85,0.67]
[1763247895072,1.76767827,139.86,139.82,0.67]
[1763247895250,1.76767827,139.85,139.82,0.67]
[1763247897278,8.5,139.86,139.82,9.58966597]
[1763247897451,1.76767827,139.87,139.82,9.58966597]
[1763247897650,1.76767827,139.87,139.83,0.67]
[1763247898951,22.6512,139.9,139.84,1.76767827]
[1763247899151,22.6512,139.9,139.85,8.91819668]
[1763247899152,10.26767827,139.89,139.85,8.91819668]
[1763247899569,10.26767827,139.89,139.86,0.67]
[1763247900575,1.76767827,139.88,139.84,0.67]
[1763247900872,1.76767827,139.88,139.84,7.15096276]
[1763247901063,8.91687655,139.88,139.85,0.67]
[1763247901258,1.76767827,139.86,139.81,2.43767827]
[1763247901466,1.76767827,139.84,139.8,0.67]
[1763247901669,1.76767827,139.83,139.8,0.67]
[1763247901964,1.76767827,139.81,139.78,0.1]
[1763247902160,1.76767827,139.8,139.78,0.1]
[1763247902974,4.30540357,139.8,139.78,0.77]
[1763247903500,12.80540357,139.81,139.78,0.77]
[1763247903663,15.65177053,139.83,139.79,4.30540357]
[1763247904072,8.5,139.85,139.8,4.97540357]
[1763247904382,12.80540357,139.85,139.8,4.97540357]
[1763247904580,12.80540357,139.85,139.81,0.67]
[1763247904880,4.30540357,139.83,139.78,7.92407024]
[1763247905081,4.30540357,139.83,139.78,12.22947381]
[1763247905277,7.15205263,139.82,139.79,0.67]
[1763247905454,19.9574562,139.82,139.78,0.77]
[1763247905651,20.2474562,139.82,139.78,0.77]
[1763247905958,19.9574562,139.82,139.78,0.77]
[1763247907084,19.9574562,139.82,139.78,0.1]
[1763247907085,11.74814195,139.81,139.78,0.1]
[1763247907782,4.30540357,139.8,139.78,0.1]
[1763247907963,11.45814195,139.81,139.78,0.1]
[1763247908167,4.30540357,139.81,139.78,0.77]
[1763247909272,11.45809131,139.81,139.78,0.1]
[1763247909460,8.5,139.8,139.78,0.1]
[1763247910279,13.09540357,139.8,139.78,0.1]
[1763247910580,12.80540357,139.8,139.78,0.1]
[1763247911185,7.15358752,139.79,139.78,0.1]
[1763247911688,21.53781878,139.79,139.78,0.1]
[1763247911861,7.15358752,139.79,139.78,0.1]
[1763247912064,11.45899109,139.79,139.78,0.1]
[1763247912480,7.15358752,139.79,139.78,0.1]
[1763247913695,42.60989622,139.8,139.78,0.1]
[1763247913867,8.5,139.8,139.78,0.76]
[1763247916584,8.5,139.81,139.78,12.21945784]
[1763247916774,8.5,139.81,139.79,0.66]
[1763247917386,8.5,139.81,139.78,0.76]
[1763247917560,12.80540357,139.81,139.78,0.1]
[1763247917767,13.09540357,139.81,139.78,0.1]
[1763247918566,19.95847545,139.81,139.78,0.1]
[1763247918967,4.30540357,139.8,139.78,0.1]
[1763247919268,8.5,139.79,139.78,0.1]
[1763247920190,8.5,139.79,139.78,0.76]
[1763247922600,35.45660357,139.81,139.8,0.34682649]
[1763247922966,32.92249336,139.81,139.8,0.34682649]
[1763247923494,40.07505755,139.81,139.8,0.34682649]
[1763247924001,40.07505755,139.81,139.8,1.00682649]
[1763247924002,8.5,139.81,139.8,1.00682649]
[1763247924893,50.31961175,139.83,139.8,1.00682649]
[1763247924894,22.6512,139.83,139.8,1.00682649]
[1763247925098,8.5,139.84,139.81,0.66]
[1763247925279,10.27129336,139.84,139.81,0.66]
[1763247925470,8.5,139.84,139.81,0.66]
[1763247925670,17.42181177,139.85,139.81,0.66]
[1763247929276,24.42249336,139.86,139.81,9.5837458]
[1763247929504,7.15022967,139.86,139.82,1.77129336]
[1763247929693,17.42095118,139.87,139.82,2.43129336]
[1763247929895,1.77129336,139.9,139.85,1.77129336]
[1763247930095,1.77129336,139.9,139.86,1.77129336]
[1763247930284,1.77129336,139.9,139.85,1.77129336]
[1763247930687,1.77129336,139.9,139.86,0.66]
[1763247931121,1.77129336,139.9,139.86,7.8098442]
[1763247931486,1.77129336,139.9,139.87,0.66]
[1763247931815,32.92249336,139.91,139.87,0.66]
[1763247932515,40.07004929,139.91,139.87,0.66]
[1763247932690,40.07004929,139.91,139.87,7.80948346]
[1763247932895,40.07004929,139.91,139.88,0.66]
[1763247933399,31.57004929,139.91,139.88,0.66]
[1763247933693,18.15721173,139.93,139.88,0.66]
[1763247933694,10.27129336,139.92,139.88,0.66]
[1763247933998,1.77129336,139.94,139.89,1.77129336]
[1763247934305,1.77129336,139.93,139.88,2.43129336]
[1763247934814,8.91783083,139.93,139.89,0.66]
[1763247935900,1.77129336,139.92,139.89,0.66]
[1763247936412,1.77129336,139.92,139.86,0.66]
[1763247936413,1.77129336,139.9,139.86,0.66]
[1763247936596,1.77129336,139.88,139.85,9.16]
[1763247936798,7.14884154,139.89,139.86,0.66]
[1763247937013,2.76422995,139.89,139.86,0.66]
[1763247937203,9.91277774,139.89,139.86,0.66]
[1763247938703,8.5,139.92,139.87,2.76422995]
[1763247938891,2.76422995,139.92,139.88,0.66]
[1763247939088,9.91074415,139.93,139.88,3.42422995]
[1763247939518,9.91074415,139.93,139.89,0.66]
[1763247939992,18.41026308,139.94,139.89,3.42422995]
[1763247940392,18.41026308,139.94,139.9,0.66]
[1763247941111,2.76422995,139.92,139.88,11.92422995]
[1763247941313,33.51083232,139.94,139.86,2.76422995]
[1763247941314,2.76422995,139.91,139.86,2.76422995]
[1763247941523,2.76422995,139.91,139.87,0.66]
[1763247941693,2.76422995,139.92,139.87,3.42422995]
[1763247942221,2.76422995,139.91,139.88,0.66]
[1763247942425,2.76422995,139.9,139.86,0.66]
[1763247942715,2.76422995,139.89,139.86,0.66]
[1763247942891,8.5,139.91,139.86,0.66]
[1763247943087,2.76422995,139.9,139.86,0.66]
[1763247943291,9.91230347,139.9,139.86,7.80988435]
[1763247943516,9.91230347,139.9,139.87,0.66]
[1763247944495,2.76422995,139.89,139.85,0.66]
[1763247945014,2.76422995,139.92,139.88,2.76422995]
[1763247945215,32.56232286,139.93,139.88,2.76422995]
[1763247945404,32.56232286,139.93,139.89,0.66]
[1763247946598,2.76422995,139.92,139.89,0.66]
[1763247948422,9.91142714,139.92,139.89,0.66]
[1763247950936,13.9895904,139.92,139.89,0.66]
[1763247954923,6.84239321,139.91,139.88,0.66]
[1763247955098,5.34239321,139.91,139.88,0.66]
[1763247956812,12.49032319,139.91,139.88,0.66]
[1763247958508,6.84239321,139.9,139.88,0.66]
[1763247959127,13.9905489,139.9,139.88,0.66]
[1763247960128,6.84239321,139.89,139.85,0.66]
[1763247960429,6.84239321,139.89,139.8,1.00682649]
[1763247960430,6.84239321,139.86,139.8,1.00682649]
[1763247960634,29.49359321,139.87,139.82,6.84239321]
[1763247960813,6.84239321,139.87,139.82,6.84239321]
[1763247961018,6.84239321,139.85,139.81,15.34239321]
[1763247961341,6.84239321,139.83,139.8,1.00682649]
[1763247961506,6.84239321,139.82,139.8,1.00682649]
[1763247962030,6.84239321,139.82,139.81,0.66]
[1763247962215,6.84239321,139.83,139.81,0.66]
[1763247962923,6.84239321,139.83,139.8,0.34682649]
[1763247963228,13.99430823,139.83,139.8,1.00682649]
[1763247963410,13.99430823,139.83,139.8,8.15981208]
[1763247963411,6.84239321,139.83,139.8,8.15981208]
[1763247963619,13.99400269,139.83,139.81,0.66]
[1763247965132,6.84239321,139.83,139.81,0.66]
[1763247965637,13.99396413,139.83,139.81,0.66]
[1763247966132,15.34239321,139.84,139.81,0.66]
[1763247967037,32.44002769,139.86,139.81,14.65477623]
[1763247967038,6.84239321,139.86,139.81,14.65477623]
[1763247967518,13.99245401,139.86,139.82,0.66]
[1763247969324,13.99245401,139.86,139.82,7.81205184]
[1763247969504,13.99245401,139.86,139.82,0.66]
[1763247969706,6.84239321,139.83,139.8,0.34682649]
[1763247970007,6.84239321,139.82,139.8,1.00682649]
[1763247970624,6.84239321,139.82,139.8,0.34682649]
[1763247970908,6.84239321,139.82,139.8,1.00682649]
[1763247971737,13.99428673,139.83,139.8,1.00682649]
[1763247972234,6.84239321,139.83,139.8,0.34682649]
[1763247972536,13.99364813,139.84,139.81,0.66]
[1763247972941,9.91779535,139.84,139.81,0.66]
[1763247973313,2.76654043,139.82,139.8,0.34682649]
[1763247973518,0.29,139.83,139.8,0.34682649]
[1763247973519,2.76654043,139.81,139.8,0.34682649]
[1763247974237,2.76654043,139.82,139.8,0.34682649]
[1763247974545,2.76654043,139.82,139.8,1.05682649]
[1763247974748,9.78882769,139.84,139.8,1.05682649]
[1763247974749,15.65123186,139.84,139.8,1.05682649]
[1763247974952,18.41777229,139.84,139.81,0.71]
[1763247976565,11.26654043,139.84,139.81,0.71]
[1763247976751,11.26654043,139.84,139.81,7.86250878]
[1763247976752,8.5,139.84,139.81,7.86250878]
[1763247976931,9.91714234,139.85,139.81,7.86250878]
[1763247977260,9.91714234,139.85,139.82,0.71]
[1763247977755,2.76654043,139.87,139.82,3.47654043]
[1763247977922,9.91624962,139.87,139.82,3.47654043]
[1763247978123,11.26654043,139.88,139.83,3.47654043]
[1763247978338,2.76654043,139.87,139.84,7.15102974]
[1763247978561,2.76654043,139.87,139.84,7.86102974]
[1763247978739,9.91522041,139.89,139.85,0.71]
[1763247978943,15.64810375,139.9,139.85,3.47654043]
[1763247979132,2.76654043,139.88,139.84,7.15102974]
[1763247979343,2.76654043,139.88,139.85,0.71]
[1763247979539,2.76654043,139.87,139.85,0.71]
[1763247981851,9.91580991,139.88,139.85,0.71]
[1763247983556,2.76654043,139.88,139.85,7.86034684]
[1763247983759,9.91565938,139.88,139.85,0.71]
[1763247983938,2.76654043,139.86,139.83,8.5]
[1763247984250,2.76654043,139.85,139.81,0.71]
[1763247984454,9.91733514,139.85,139.82,0.71]
[1763247985037,18.41678837,139.86,139.82,0.71]
[1763247985242,15.65024794,139.86,139.82,3.47654043]
[1763247985653,9.91678837,139.86,139.83,0.71]
[1763247986152,7.15024794,139.86,139.83,0.71]
[1763247987146,9.91678837,139.86,139.83,0.71]
[1763247987850,18.41623509,139.87,139.83,7.86152937]
[1763247988243,2.76654043,139.86,139.84,0.71]
[1763247988762,2.76654043,139.85,139.81,7.86253838]
[1763247988967,9.91623509,139.87,139.82,2.76654043]
[1763247989254,18.41623509,139.87,139.82,3.47654043]
[1763247989457,18.41623509,139.87,139.83,0.71]
[1763247990157,18.41623509,139.87,139.83,7.86126597]
[1763247990557,8.5,139.87,139.84,0.71]
[1763247990863,7.14811,139.9,139.86,2.76654043]
[1763247991042,7.14811,139.9,139.85,0.71]